{"text_format":"1","workbook":"xlsx","n_sheets":2,"sheets":["Pasiūlymas","Subtiekėjai"],"not_rendered":{"charts":0,"images":0,"macros":1,"external_links":0,"defined_names":1,"comments":0,"pivot_tables":0},"unopened":[],"bounds":{"document_bytes":16777216,"sheet_cells":100000,"rows_first":2000,"rows_last":500,"rows_between":2000,"halvings":0,"cell_chars":16384,"cell_head_chars":4096},"cells_cut":0,"cells_raw":0,"read":"whole","date_system":"1900"}

{"sheet":"Pasiūlymas","index":0,"n_rows":60,"n_cols":13,"rows_kept":60,"cut":false,"hidden":false,"merged":[[9,0,9,1],[9,2,9,4],[10,0,10,1],[10,2,10,4],[11,0,11,1],[11,2,11,4],[12,0,12,1],[12,2,12,4],[13,0,13,1],[13,2,13,4],[14,0,14,1],[14,2,14,4],[15,0,15,1],[15,2,15,4],[16,0,16,1],[16,2,16,4],[17,0,17,1],[17,2,17,4],[18,0,18,1],[18,2,18,4],[19,0,19,1],[19,2,19,4],[22,0,22,5]]}
["Perkančioji organizacija, kuriai teikiamas pasiūlymas:",null,"VŠĮ Kauno klinikinė ligoninė"]
[]
[null,"PASIŪLYMAS"]
[null,"Šildymo sistemų ir šilumos mazgų remonto darbai "]
[]
["Data:","2018 gruodžio 14 d."]
["Nr.:","S94-001"]
["Vieta:","Vilnius"]
[]
["Tiekėjo pavadinimas /Jeigu dalyvauja ūkio subjektų grupė, surašomi visi dalyvių pavadinimai/",null,"UAB \"Santjana\""]
["Įmonės kodas /Jeigu dalyvauja ūkio subjektų grupė, surašomi visi dalyvių kodai/",null,122656944]
["PVM mokėtojo kodas /Jeigu dalyvauja ūkio subjektų grupė, surašomi visi dalyvių kodai/",null,"LT226569415"]
["Banko pavadinimas, banko kodas, sąskaitos Nr.",null,"AB Luminor; 40100; LT174010049501121558"]
["Tiekėjo adresas /Jeigu dalyvauja ūkio subjektų grupė, surašomi visi dalyvių adresai/",null,"Gelvonų g. 2, Vilnius LT-07149"]
["Telefono numeris",null,852482192]
["Fakso numeris"]
["El. pašto adresas",null,"info@santjana.lt"]
["Asmens, pasirašiusio pasiūlymą saugiu elektroniniu parašu, vardas, pavardė, pareigos "]
["Asmens, įgalioto pasirašyti sutartį, vardas, pavardė, pareigos",null,"Direktorius Jan Petrovskij"]
[]
[]
[]
["1. Šiuo pasiūlymu pažymime, kad sutinkame su visomis pirkimo sąlygomis, nustatytomis:\n1) pirkimo skelbime, paskelbtame Viešųjų pirkimų įstatymo nustatyta tvarka;\n2) pirkimo sąlygose ir kituose pirkimo dokumentuose (jų paaiškinimuose, papildymuose).\n"]
[]
["Siūlomas pirkimo objektas visiškai atitinka pirkimo sąlygose nustatytus reikalavimus ir jo kaina yra:"]
[]
[]
["Nr.","Pavadinimas","Preliminari apimtis","Mato vienetas","Vieneto įkainis be PVM","Suma be PVM",null,null,null,null,"","",""]
["1.1.","Remonto darbai darbo dieną darbo valandomis (8-17 val.)",100,"val.",16,{"$f":"100*E29","v":1600}]
["1.2.","Remonto darbai darbo dieną po darbo valandų (17-22 val.)",15,"val.",16,{"$f":"E30*15","v":240},null,null,null,""]
["1.3.","Remonto darbai poilsio ir švenčių dienomis (8-22 val.) ",5,"val.",16,{"$f":"E31*5","v":80}]
["1.4.","Daugiasluoksnis vamzdis PEX/Al/PEX  16mmx2,0mm; Tmax – 90˚",50,"m",1,{"$f":"E32*50","v":50}]
["1.5.","Daugiasluoksnis vamzdis PEX/Al/PEX  20mmx2,0mm; Tmax – 90 ˚        ",50,"m",1.5,{"$f":"E33*50","v":75},null,null,null,""]
["1.6.","Daugiasluoksnis vamzdis PCX/AC/Pex 26mmx2,5mm; Tmax – 90 ˚        ",50,"m",2.85,{"$f":"E34*50","v":142.5},null,null,null,null,null,""]
["1.7.","Vamzdžiai plieniniai diam. 15mmx2,6mm",50,"m",1.1000000000000001,55.000000000000007,null,null,null,null,null,""]
["1.8.","Vamzdžiai plieniniai diam. 20mmx2,6mm        ",50,"m",1.5,75,null,null,null,"","",""]
["1.9.","Vamzdžiai plieniniai diam. 25mmx3,2mm        ",50,"m",2,100,null,null,null,"","",""]
["1.10.","Vamzdžiai plieniniai diam. 32mmx3,2mm        ",50,"m",2.7,135,null,null,null,"","",""]
["1.11.","Vamzdžiai plieniniai diam. 40mmx3,2mm        ",50,"m",3.25,162.5]
["1.12.","Vamzdžiai plieniniai diam. 50mmx3,6mm        ",50,"m",4.3,215]
["1.13.","Vamzdžiai plieniniai diam. 76mmx3,6mm        ",50,"m",5.73,286.5,null,null,null,""]
["1.14.","Vamzdžiai plieniniai diam. 108mmx4,0mm        ",50,"m",11.8,590]
["1.15.","Vamzdis PPRPN diam. 20mm karštam vandeniui        ",50,"m",2,100,null,null,null,null,null,""]
["1.16.","Vamzdis PPRPN diam. 25mm karštam vandeniui        ",50,"m",2.8,140,null,null,null,"",null,""]
["1.17.","Vamzdis PPRPN diam. 32mm karštam vandeniui        ",50,"m",4.5999999999999996,229.99999999999997,null,null,null,null,null,""]
["1.18.","Vamzdis PPRPN diam. 40mm karštam vandeniui        ",50,"m",6.85,342.5]
["1.19.","Siurblys cirkuliacinis šildymui G(m³/ h)/P(kPa): 27/11 flanšinis",1,"vnt.",180,{"$f":"E47*1","v":180},null,null,null,"","",""]
["1.20.","Siurblys cirkuliacinis šildymui G(m³/ h)/P(kPa): 30/7",1,"vnt.",280,{"$f":"E48*1","v":280},null,null,null,"","",""]
["1.21.","Siurblys cirkuliacinis šildymui G(m³/ h)/P(kPa): 25/10",1,"vnt.",175,175,null,null,null,"","",""]
["1.22.","Siurblys cirkuliacinis šildymui G(m³/ h)/P(kPa): 25/7",1,"vnt.",120,120]
["1.23.","Siurblys cirkuliacinis šildymui G(m³/ h)/P(kPa): 40/12 flanšinis",1,"vnt.",550,550]
["1.24.","Siurblys cirkuliacinis šildymui G(m³/ h)/P(kPa): 25/80",1,"vnt.",185,185]
["1.25.","Siurblys cirkuliacinis šildymui G(m³/ h)/P(kPa): 25/60",1,"vnt.",185,185]
["1.26.","Siurblys cirkuliacinis šildymui G(m³/ h)/P(kPa): 25/40",1,"vnt.",185,185]
["1.27.","Siurblys cirkuliacinis šildymui G(m³/ h)/P(kPa):  30/10  ",1,"vnt.",185,185]
["1.28.","Siurblys cirkuliacinis šildymui G(m³/ h)/P(kPa): 40/10  flanšinis",1,"vnt.",400,400]
["1.29.","Siurblys cirkuliacinis šildymui G(m³/ h)/P(kPa): 50/7 flanšinis ",1,"vnt.",650,650]
[null,null,null,null,"Suma be PVM",{"$f":"SUM(F29:F57)","v":7714}]
[null,null,null,null,"PVM suma",{"$f":"0.21*F58","v":1619.9399999999998}]
[null,null,null,null,"Suma su PVM",{"$f":"F58*1.21","v":9333.94}]

{"sheet":"Subtiekėjai","index":1,"n_rows":100,"n_cols":9,"rows_kept":100,"cut":false,"hidden":false,"merged":[[4,0,4,1],[4,2,4,4],[4,5,4,7],[4,8,4,9],[1,0,1,9],[3,0,3,1],[3,2,3,4],[3,5,3,7],[3,8,3,9],[5,0,5,1],[5,2,5,4],[5,5,5,7],[5,8,5,9],[6,0,6,1],[6,2,6,4],[6,5,6,7],[6,8,6,9],[17,1,17,6],[17,7,17,9],[7,0,7,1],[7,2,7,4],[7,5,7,7],[7,8,7,9],[8,0,8,1],[8,2,8,4],[8,5,8,7],[8,8,8,9],[10,0,10,9],[12,0,12,9],[14,0,14,9],[16,1,16,6],[16,7,16,9],[18,1,18,6],[18,7,18,9],[19,1,19,6],[19,7,19,9],[20,1,20,6],[20,7,20,9],[38,0,38,9],[21,1,21,6],[21,7,21,9],[24,0,24,3],[24,4,24,9],[25,0,25,9],[26,0,26,9],[28,0,28,9],[32,0,32,3],[32,4,32,9],[35,0,35,3],[35,4,35,9]]}
[]
["Sutarties vykdymui numatome pasitelkti šiuos subtiekėjus / subteikėjus / subrangovus (įrašyti visus subtiekėjus / subteikėjus / subrangovus nepriklausomai nuo tiekiamų prekių/ teikiamų paslaugų/ atliekamų darbų vertės):"]
[]
["Subtiekėjo / subteikėjo / subrangovo (-ų) pavadinimas (-ai)",null,"Adresas",null,null,"Trumpas aprašymas",null,null,"Procentas nuo pasiūlymo kainos be PVM"]
[]
[]
[]
[]
[]
[]
["Jeigu pirkimo dokumentų 18 punkte numatytas subtiekimo / subteikimo / subrangos apribojimas:\nMes patvirtiname, kad subtiekėjams / subteikėjams / subrangovams (tiekėjams, kuriuos pasamdysime dalies sutartyje numatytų prekių tiekimui /paslaugų teikimui / darbų atlikimui) perduodamų tiekti prekių / teikti paslaugų/ atlikti darbų dalis neviršys       proc. pasiūlymo kainos be PVM."]
[]
["Mes patvirtiname, kad esame / nesame (nereikalingą išbraukti) laikomi asocijuotais (susijusiais) su Perkančiąja organizacija pagal Lietuvos Respublikoje galiojančių teisės aktų (Lietuvos Respublikos pelno mokesčio, Lietuvos Respublikos pridėtinės vertės mokesčio ir Lietuvos Respublikos gyventojų pajamų mokesčio įstatymų) nuostatas. "]
[]
["Kartu su pasiūlymu pateikiami šie dokumentai:"]
[]
["Eil.Nr.","\"Pateiktų skaitmeninių dokumentų (ar jų kopijų) pavadinimas\n(pasiūlymą sudarančių konfidencialių dokumentų pavadinimai pažymėti prierašu KONFIDENCIALU)\"",null,null,null,null,null,"Prisegtos bylos (failo) pavadinimas "]
[]
[]
[]
[]
[]
[]
[]
["Pasiūlymo galiojimo užtikrinimui pateikiame :"]
[]
["(Nurodyti užtikrinimo būdą, dydį, dokumentus)"]
[]
["\nPasiūlymas galioja iki termino, nustatyto pirkimo dokumentuose.\n\nPasiūlymo neatskiriama dalis yra (rašoma, jeigu buvo reikalauta prie pasiūlymo pridėti atitinkamą dokumentą)"]
[]
[]
[]
["Tiekėjo arba jo įgalioto asmens pareigų pavadinimas"]
[]
[]
["Pasirašančio asmens vardas ir pavardė"]
[]
[]
["**kadangi visas pasiūlymas pasirašomas saugiu elektroniniu parašu, šio dokumento atskirai pasirašyti neprivaloma."]
[]
[]
[]
[]
[]
[]
[]
[]
[]
[]
[]
[]
[]
[]
[]
[]
[]
[]
[]
[]
[]
[]
[]
[]
[]
[]
[]
[]
[]
[]
[]
[]
[]
[]
[]
[]
[]
[]
[]
[]
[]
[]
[]
[]
[]
[]
[]
[]
[]
[]
[]
[]
[]
[]
[]
[]
[]
[]
[]
[]
["2596 2018-12-07 13:41"]